bitfinex/quotes_ETHUSD_20241018
["timestamp","ask_amount","ask_price","bid_price","bid_amount"]
[1729215139699,0.7536,2618.5,2618.0,3.81961]
[1729215140449,0.59818965,2618.6,2618.2,3.81929]
[1729215140652,0.59818965,2618.6,2618.1,3.81954]
[1729215140976,3.81929,2618.3,2617.9,0.8213]
[1729215141149,3.81929,2618.3,2617.8,7.23850584]
[1729215141150,3.81929,2618.3,2617.8,7.23843584]
[1729215141480,3.81929,2618.3,2617.6,0.7931]
[1729215141481,3.8195,2618.2,2617.6,8.4335]
[1729215141637,0.8152,2618.1,2617.5,3.41852584]
[1729215141839,4.63486,2618.1,2617.2,4.17572584]
[1729215142039,4.63486,2618.1,2617.6,3.82028]
[1729215142241,0.8152,2618.1,2617.6,4.57738]
[1729215142435,0.59818965,2618.6,2617.6,4.57738]
[1729215142436,1.41338965,2618.6,2618.0,0.7572]
[1729215142680,0.7515,2619.0,2618.2,3.81928]
[1729215142870,3.81848,2618.9,2618.2,3.81928]
[1729215143063,7.63697,2618.9,2618.2,3.81928]
[1729215143383,3.81848,2618.9,2618.3,3.81925]
[1729215143587,0.7515,2619.0,2618.4,7.23764584]
[1729215143746,4.56988,2619.0,2618.4,7.23764584]
[1729215143947,4.56988,2619.0,2618.4,7.99904584]
[1729215144455,4.56988,2619.0,2618.4,11.81807584]
[1729215144671,4.56988,2619.0,2618.4,7.99904584]
[1729215144847,4.56988,2619.0,2618.4,9.29145998]
[1729215145682,0.7515,2619.0,2618.4,9.29145998]
[1729215145849,3.8184,2618.9,2618.4,9.29145998]
[1729215146951,4.56978,2619.0,2618.5,3.81888]
[1729215147151,4.56978,2619.0,2618.5,5.129914]
[1729215147391,8.38817,2619.0,2618.5,1.311034]
[1729215147615,4.56978,2619.0,2618.4,7.99904584]
[1729215147816,4.56978,2619.0,2618.5,3.81896]
[1729215148395,8.38816,2619.0,2618.5,3.81896]
[1729215148721,3.8184,2618.9,2618.4,7.99913584]
[1729215149707,3.81908,2618.5,2617.9,3.81976]
[1729215149913,4.616,2618.3,2617.7,3.82004]
[1729215150126,4.616,2618.3,2617.6,0.8279]
[1729215150281,3.81958,2618.1,2617.6,0.8279]
[1729215151094,3.81958,2618.1,2617.6,4.64816]
[1729215151925,3.81866366,2618.1,2617.6,4.64816]
[1729215152747,3.81944,2618.2,2617.8,3.41852584]
[1729215155151,0.7967,2618.3,2617.8,3.41852584]
[1729215155305,4.60411,2618.6,2618.1,8.05339584]
[1729215155754,0.8101,2618.9,2618.4,3.41852584]
[1729215156421,0.8101,2618.9,2618.4,7.23755584]
[1729215156732,3.81832,2619.0,2618.5,3.81886]
[1729215156908,1.40817227,2619.1,2618.7,7.23712584]
[1729215157112,0.59807227,2619.1,2618.8,3.81845]
[1729215157452,3.81745,2619.6,2619.1,3.81809]
[1729215157806,0.8183,2619.7,2619.1,3.81809]
[1729215158009,0.8183,2619.7,2619.0,3.41852584]
[1729215158010,0.59791525,2619.8,2619.3,7.23624584]
[1729215158213,3.81697,2619.9,2619.3,7.23624584]
[1729215158629,4.63516,2620.0,2619.4,3.81763]
[1729215158848,4.63516,2620.0,2619.3,7.23623584]
[1729215159054,4.63516,2620.0,2619.4,0.80346358]
[1729215159963,0.8183,2620.0,2619.4,0.80346358]
[1729215160259,0.8183,2620.0,2619.5,3.81741]
[1729215160561,3.81679,2620.0,2619.5,3.81741]
[1729215160917,7.63343,2620.1,2619.5,3.81741]
[1729215161272,3.81686,2620.0,2619.5,5.00312394]
[1729215161964,5.22423203,2620.2,2619.7,3.81722]
[1729215162254,5.22423203,2620.2,2619.7,4.59492]
[1729215162255,1.40770203,2620.2,2619.7,4.59492]
[1729215162431,0.8099,2620.2,2619.7,4.59492]
[1729215162760,0.5977266,2620.4,2619.8,3.81697]
[1729215163051,4.4140166,2620.4,2619.7,5.89648398]
[1729215163273,3.81675,2620.1,2619.7,2.07936398]
[1729215163419,3.81675,2620.1,2619.4,0.8301]
[1729215163420,3.81694,2619.9,2619.4,0.8301]
[1729215163759,3.81694,2619.9,2619.1,3.81802]
[1729215163760,3.81727,2619.7,2619.2,3.81794]
[1729215164054,3.81727,2619.7,2619.1,0.8301]
[1729215164055,3.81743,2619.6,2619.1,4.6481]
[1729215164263,3.81727,2619.7,2619.1,4.6481]
[1729215164812,7.63459,2619.7,2619.1,4.6481]
[1729215165341,3.81727,2619.7,2619.1,0.8301]
[1729215165728,3.81727,2619.7,2618.8,0.7538]
[1729215165729,0.463597,2619.7,2618.8,0.7538]
[1729215165923,3.81807,2619.2,2618.6,3.81879]
[1729215166123,3.81807,2619.2,2618.5,4.57265]
[1729215166124,3.81807,2619.2,2618.7,3.81867]
[1729215166382,3.81807,2619.2,2618.5,4.57265]
[1729215166383,3.81812,2619.1,2618.5,4.57265]
[1729215166533,3.81841,2618.9,2618.5,0.7538]
[1729215167033,3.81826,2619.0,2618.5,0.7538]
[1729215167234,1.553619,2619.1,2618.5,0.7538]
[1729215167444,0.79,2619.1,2618.6,7.23726584]
[1729215167780,3.8179,2619.3,2618.8,7.23701584]
[1729215167957,3.8179,2619.3,2618.6,7.23726584]
[1729215167958,3.81803,2619.2,2618.6,7.23726584]
[1729215168133,3.81803,2619.2,2618.6,11.05600584]
[1729215168343,3.8179,2619.3,2618.7,3.81865]
[1729215168653,7.63582,2619.3,2618.7,3.81865]
[1729215168850,3.8179,2619.3,2618.7,3.81865]
[1729215169074,7.6358,2619.3,2618.7,3.81865]
[1729215169574,3.81811,2619.1,2618.6,7.23726584]
[1729215169782,3.8179,2619.3,2618.6,7.23723584]
[1729215169979,3.8179,2619.3,2618.6,8.03633942]
[1729215170177,0.79,2619.4,2618.5,0.7538]
[1729215170473,3.81819,2619.1,2618.6,3.81883]
[1729215170675,3.81781,2619.3,2618.8,3.81844]
[1729215171952,3.81781,2619.3,2618.6,7.23727584]
[1729215172281,3.81781,2619.3,2618.7,3.81867]
[1729215172639,3.81796,2619.2,2618.6,11.05602584]
[1729215173075,3.81796,2619.2,2618.7,3.81868]
[1729215173381,7.63575,2619.3,2618.7,3.81868]
[1729215173546,3.81796,2619.2,2618.7,3.81868]
[1729215174179,3.81796,2619.2,2618.6,3.49489464]
[1729215174383,3.81796,2619.2,2618.6,4.6072023]
[1729215175472,3.81796,2619.2,2618.6,4.68357112]
[1729215175644,3.81781,2619.3,2618.6,4.68357113]
[1729215176066,3.81796,2619.2,2618.6,4.68357113]
[1729215176402,3.81781,2619.3,2618.6,8.50233113]
[1729215176558,4.62027,2619.6,2619.2,3.41852584]
[1729215176751,3.81754,2619.5,2619.2,3.41852584]
[1729215176954,4.62027,2619.6,2619.2,3.41852584]
[1729215177154,8.43774,2619.6,2619.2,3.41852584]
[1729215177347,3.8167,2620.1,2619.2,3.41852584]
[1729215177348,3.81717,2619.8,2619.2,3.41852584]
[1729215177894,3.81734,2619.7,2619.2,3.41852584]
[1729215178097,3.81717,2619.8,2619.5,3.41852584]
[1729215178279,7.63378,2620.0,2619.5,3.41852584]
[1729215178582,0.8029,2620.2,2619.5,3.41852584]
[1729215178583,4.61949,2620.2,2619.5,4.19932584]
[1729215178797,3.81659,2620.2,2619.5,4.19932584]
[1729215178973,3.8169,2620.0,2619.5,4.19932584]
[1729215179174,3.81657,2620.2,2619.6,0.80168658]
[1729215179364,3.81657,2620.2,2619.8,3.41852584]
[1729215179545,3.81645,2620.3,2619.8,3.41852584]
[1729215179742,5.2169066,2620.4,2619.8,3.41852584]
[1729215179948,3.81651,2620.2,2619.8,3.41852584]
[1729215180201,4.4140066,2620.4,2620.0,0.7808]
[1729215180393,3.81645,2620.3,2620.0,0.7808]
[1729215180554,3.81628,2620.4,2620.0,0.7808]
[1729215180755,7.63257,2620.4,2620.0,0.7808]
[1729215180974,3.81628,2620.4,2620.0,0.7808]
[1729215182105,3.81658,2620.2,2620.0,0.7808]
[1729215182414,3.81658,2620.2,2619.7,0.8168]
[1729215182415,3.81693,2619.9,2619.7,0.8168]
[1729215182574,3.81687,2620.0,2619.7,0.8168]
[1729215182961,3.81694,2619.9,2619.7,0.8168]
[1729215183697,0.8039,2619.9,2619.3,0.7913]
[1729215184001,3.81713,2619.8,2619.4,3.41852584]
[1729215184163,0.8039,2619.9,2619.4,3.41852584]
[1729215184366,3.81735,2619.7,2619.3,1.67425624]
[1729215184805,0.8039,2619.9,2619.3,0.7913]
[1729215184806,3.81745,2619.6,2619.3,0.7913]
[1729215185913,3.81745,2619.6,2619.2,3.41852584]
[1729215186070,3.81732,2619.7,2619.3,3.41852584]
[1729215187313,3.81732,2619.7,2619.1,7.23660584]
[1729215187482,7.63469,2619.7,2619.2,0.80303058]
[1729215187683,3.81732,2619.7,2619.2,0.80303058]
[1729215188082,7.63467,2619.7,2619.2,0.80303058]
[1729215188284,3.81732,2619.7,2619.2,0.80303058]
[1729215188615,3.81738,2619.6,2619.2,0.80303058]
[1729215188986,7.63514,2619.5,2619.2,0.80303058]
[1729215189186,0.8039,2619.9,2618.7,0.7573]
[1729215189187,3.8182,2619.1,2618.7,0.7573]
[1729215189387,0.7699,2619.3,2618.7,0.7573]
[1729215189588,3.81833,2619.0,2618.4,4.6434]
[1729215189790,3.81833,2619.0,2618.5,3.41852584]
[1729215190008,3.81833,2619.0,2618.7,3.41852584]
[1729215190188,3.81833,2619.0,2618.5,3.41852584]
[1729215190405,3.81833,2619.0,2618.5,4.60663242]
[1729215190717,3.81833,2619.0,2618.5,8.42558242]
[1729215190872,3.81833,2619.0,2618.5,4.60663242]
[1729215191823,3.81833,2619.0,2618.5,8.42557242]
[1729215192684,7.63667,2619.0,2618.5,8.42557242]
[1729215192987,0.7699,2619.3,2618.5,3.41852584]
[1729215193189,3.81937,2618.3,2617.9,0.7688]
[1729215193575,3.81964,2618.1,2617.6,0.7688]
[1729215193775,0.7973,2618.6,2617.6,4.58908]
[1729215193776,3.81935,2618.3,2617.6,4.58908]
[1729215194006,3.81944,2618.2,2617.7,8.42145942]
[1729215194170,3.81967,2618.1,2617.7,4.60132942]
[1729215194377,3.81967,2618.1,2617.7,1.18280358]
[1729215194886,3.81964,2618.1,2617.7,1.18280358]
[1729215195681,3.81932,2618.3,2617.8,3.41852584]
[1729215195882,3.81906,2618.5,2617.9,0.84978545]
[1729215195883,7.63816,2618.5,2617.9,0.84978545]
[1729215196080,3.81912,2618.4,2617.9,0.84978545]
[1729215196278,0.7973,2618.6,2617.6,4.589]
[1729215196578,0.7973,2618.6,2617.6,0.7688]
[1729215196579,3.81927,2618.3,2617.6,0.7688]
[1729215196803,7.6395,2618.0,2617.6,0.7688]
[1729215196975,3.81971,2618.0,2617.6,0.7688]
[1729215197390,4.57175,2618.2,2617.6,8.00752584]
[1729215197391,8.39129,2618.2,2617.6,8.00752584]
[1729215197734,4.57175,2618.2,2617.6,9.19804754]
[1729215197881,3.81963,2618.1,2617.6,5.37775754]
[1729215198083,3.81963,2618.1,2617.6,9.19803754]
[1729215198402,3.81963,2618.1,2617.6,5.37775754]
[1729215198586,4.57175,2618.2,2617.6,5.37775754]
[1729215198587,3.81971,2618.0,2617.6,5.37775754]
[1729215198978,3.82018,2617.7,2617.3,0.8067]
[1729215199182,3.82018,2617.7,2617.1,0.8067]
[1729215199183,3.82048,2617.5,2617.1,0.8067]
[1729215200318,4.65219,2617.6,2617.1,0.8067]
[1729215200700,3.82067,2617.4,2617.1,0.8067]
[1729215201282,3.82075,2617.3,2616.8,4.16892584]
[1729215201594,3.82075,2617.3,2616.8,4.96796642]
[1729215201930,3.82067,2617.4,2616.8,4.96796642]
[1729215201931,3.82091,2617.2,2616.8,1.54944058]
[1729215202278,3.82075,2617.3,2616.8,1.54944058]
[1729215202478,3.82067,2617.4,2616.8,1.54944058]
[1729215202726,3.8209,2617.2,2616.8,0.7504]
[1729215203515,3.82075,2617.3,2616.8,0.7504]
[1729215203813,3.82067,2617.4,2616.8,4.57182]
[1729215204048,4.65217,2617.6,2616.9,7.23972584]
[1729215204251,3.82018,2617.7,2617.2,3.41852584]
[1729215204459,3.82018,2617.7,2617.1,3.82092]
[1729215204660,3.82008,2617.8,2617.1,3.82092]
[1729215204811,3.82008,2617.8,2617.3,0.8126]
[1729215205157,4.5889,2618.1,2617.4,7.23900584]
[1729215205445,3.8201,2617.8,2617.3,0.8126]
[1729215205645,3.8203,2617.6,2617.3,0.8126]
[1729215205806,3.82045,2617.5,2617.3,0.8126]
[1729215206214,3.8203,2617.6,2617.3,0.8126]
[1729215207113,3.82007,2617.8,2617.3,0.8126]
[1729215207334,3.81979,2618.0,2617.4,3.82055]
[1729215207651,3.81979,2618.0,2617.5,0.463315]
[1729215207832,0.7693,2618.1,2617.5,4.283655]
[1729215208034,3.81957,2618.1,2617.5,4.283655]
[1729215208345,3.81973,2618.0,2617.5,0.463315]
[1729215208858,7.63903,2618.2,2617.5,4.283655]
[1729215209021,3.81974,2618.0,2617.5,0.463315]
[1729215209343,3.81949,2618.2,2617.5,0.463315]
[1729215209550,3.81971,2618.0,2617.4,3.82048]
[1729215209753,3.81971,2618.0,2617.4,7.64097]
[1729215209950,3.81971,2618.0,2617.3,5.1894594]
[1729215210295,0.5258309,2618.2,2617.6,3.82027]
[1729215210296,3.81949,2618.2,2617.6,3.82027]
[1729215210414,3.81949,2618.2,2617.7,0.7566]
[1729215210615,3.81941,2618.2,2617.4,0.8231]
[1729215210856,3.82037,2617.6,2617.1,0.8231]
[1729215211149,3.82047,2617.5,2617.1,0.8231]
[1729215211542,0.7501,2617.8,2617.1,0.8231]
[1729215211724,0.7501,2617.8,2616.8,4.64454]
[1729215211946,3.82071,2617.4,2616.8,5.408934]
[1729215212247,3.82073,2617.3,2616.8,5.408934]
[1729215212551,3.82071,2617.4,2616.8,5.408934]
[1729215212552,3.82089,2617.2,2616.8,1.587554]
[1729215212916,3.82071,2617.4,2616.8,1.587554]
[1729215213220,3.82071,2617.4,2616.8,5.408924]
[1729215213537,3.82061,2617.4,2616.9,0.44980034]
[1729215213727,3.82061,2617.4,2616.9,4.27109034]
[1729215214123,3.82038,2617.6,2617.0,3.82115]
[1729215214421,3.82,2617.8,2617.3,3.82061]
[1729215214634,3.81984,2618.0,2617.3,4.285781]
[1729215215254,7.63899,2618.2,2617.6,4.60187]
[1729215215481,7.63899,2618.2,2617.6,0.7816]
[1729215215482,3.81968,2618.1,2617.6,0.7816]
[1729215215640,3.81949,2618.2,2617.6,4.60178]
[1729215215835,3.81949,2618.2,2617.6,1.623807]
[1729215216057,3.8196,2618.1,2617.6,1.623807]
[1729215216340,3.81949,2618.2,2617.6,5.444007]
[1729215216781,3.81968,2618.1,2617.6,1.623807]
[1729215217147,3.81949,2618.2,2617.6,5.444007]
[1729215217376,3.81949,2618.2,2617.7,0.9264297]
[1729215217693,7.63844,2618.4,2617.7,1.00282866]
[1729215217847,4.63007,2618.5,2617.7,4.7464397]
[1729215218046,3.81936,2618.3,2617.8,3.81992]
[1729215218253,3.81936,2618.3,2617.9,0.85663597]
[1729215218984,3.81936,2618.3,2617.8,3.81992]
[1729215219197,3.81942,2618.2,2617.6,8.9786394]
[1729215219410,3.81974,2618.0,2617.6,0.7816]
[1729215220398,3.81974,2618.0,2617.4,4.58754]
[1729215220700,7.63958,2618.0,2617.4,5.428375]
[1729215220863,3.81974,2618.0,2617.4,9.248875]
[1729215221059,3.81974,2618.0,2617.5,3.82035]
[1729215221276,3.81974,2618.0,2617.4,9.248855]
[1729215221460,3.81974,2618.0,2617.4,5.428375]
[1729215222000,3.81974,2618.0,2617.4,0.7671]
[1729215222299,3.81995,2617.9,2617.4,0.7671]
[1729215222488,3.81995,2617.9,2617.4,4.58766]
[1729215223009,3.81974,2618.0,2617.4,4.58766]
[1729215223182,3.81974,2618.0,2617.5,3.82042]
[1729215224385,3.81934,2618.3,2617.7,3.82004]
[1729215224578,3.81885,2618.6,2617.9,3.81983]
[1729215224771,0.779,2618.7,2618.2,3.81938]
[1729215224980,3.81829,2619.0,2618.4,3.81904]
[1729215225176,0.83974,2619.0,2618.5,0.773]
[1729215225396,3.81811,2619.1,2618.5,0.773]
[1729215225598,0.7611,2619.4,2618.5,4.59187]
[1729215225599,3.81825,2619.0,2618.5,4.59187]
[1729215225799,3.81825,2619.0,2618.5,0.773]
[1729215226212,0.7611,2619.4,2618.5,0.773]
[1729215226213,3.81805,2619.2,2618.5,0.773]
[1729215226414,0.381805,2619.1,2618.5,0.773]
[1729215226627,3.81826,2619.0,2618.5,0.773]
[1729215226807,3.81841,2618.9,2618.5,0.773]
[1729215227123,3.81826,2619.0,2618.5,0.773]
[1729215227296,3.81839,2618.9,2618.5,0.773]
[1729215228028,3.81826,2619.0,2618.5,0.773]
[1729215228201,7.6366,2619.0,2618.5,0.773]
[1729215228402,3.81848,2618.9,2618.5,0.773]
[1729215230380,3.81848,2618.9,2618.2,0.7526]
[1729215230381,3.81912,2618.5,2618.2,0.7526]
[1729215230532,3.8193,2618.3,2617.9,0.8192]
[1729215230734,8.02059,2618.3,2617.9,0.8192]
[1729215231042,3.81953,2618.2,2617.5,0.8192]
[1729215231223,7.63904,2618.2,2617.6,3.82019]
[1729215231405,7.63907,2618.2,2617.6,3.82019]
[1729215231734,3.81951,2618.2,2617.6,3.82019]
[1729215231899,3.81951,2618.2,2617.6,3.82018]
[1729215232240,3.81951,2618.2,2617.6,4.666169]
[1729215232436,3.81921,2618.4,2617.6,5.2228484]
[1729215232632,3.81921,2618.4,2617.8,3.81988]
[1729215232809,3.81921,2618.4,2617.9,3.81984]
[1729215233015,3.8189,2618.6,2618.0,4.59413]
[1729215233196,0.8114,2618.7,2618.0,4.59413]
[1729215233197,3.81871,2618.7,2618.1,0.841397]
[1729215233831,3.81871,2618.7,2618.1,4.660927]
[1729215234557,3.81876,2618.7,2618.1,4.660927]
[1729215234711,3.81876,2618.7,2618.1,0.841397]
[1729215234909,3.819,2618.5,2618.0,0.7745]
[1729215235211,3.81876,2618.7,2618.0,4.59418]
[1729215235434,3.81876,2618.7,2618.1,3.81948]
[1729215235639,3.81876,2618.7,2618.0,4.59418]
[1729215236412,3.81898,2618.5,2618.0,4.59418]
[1729215236641,3.81898,2618.5,2618.0,5.435591]
[1729215237753,3.81898,2618.5,2618.0,9.255211]
[1729215237939,3.81876,2618.7,2618.1,3.81955]
[1729215238656,3.81876,2618.7,2618.0,5.435531]
[1729215238953,3.81883,2618.6,2618.0,5.435531]
[1729215239318,3.81876,2618.7,2618.0,5.435531]
[1729215239658,3.81883,2618.6,2618.1,3.81947]
[1729215240308,3.81876,2618.7,2618.1,3.81947]
[1729215240651,3.81876,2618.7,2618.0,5.435531]
[1729215240856,3.81899,2618.5,2618.0,5.435531]
[1729215241153,3.81886,2618.6,2618.1,4.23497194]
[1729215243273,3.81886,2618.6,2618.1,0.41549194]
[1729215243562,3.81898,2618.5,2618.0,4.59412]
[1729215244130,3.81886,2618.6,2618.0,4.59412]
[1729215244533,4.41670893,2618.8,2618.1,3.49326743]
[1729215244857,4.41670893,2618.8,2617.9,0.7557]
[1729215244858,3.81908,2618.5,2617.9,0.7557]
[1729215245187,3.81929,2618.3,2617.9,0.7557]
[1729215245466,3.81962,2618.1,2617.6,4.57589]
[1729215245636,3.81933,2618.3,2617.7,3.82013]
[1729215245637,3.81942,2618.2,2617.7,3.82013]
[1729215245838,3.81942,2618.2,2617.6,8.39611]
[1729215246022,3.81942,2618.2,2617.6,9.57740935]
[1729215246222,3.81933,2618.3,2617.6,1.93699935]
[1729215246532,3.81933,2618.3,2617.8,7.23679355]
[1729215246737,3.81896,2618.6,2618.0,3.81963]
[1729215246934,0.59808893,2618.8,2618.4,3.41688355]
[1729215247170,0.59808893,2618.8,2618.6,3.81869]
[1729215247324,3.8179,2619.3,2618.7,3.41688355]
[1729215247531,3.81789,2619.3,2618.7,3.41688355]
[1729215247845,3.81789,2619.3,2618.5,4.6415]
[1729215247846,3.818,2619.2,2618.5,0.8226]
[1729215248035,3.818,2619.2,2618.5,0.89897161]
[1729215248254,3.81814,2619.1,2618.5,0.8226]
[1729215248671,7.6358,2619.3,2618.5,4.71792161]
[1729215248822,3.81789,2619.3,2618.7,3.41688355]
[1729215249324,3.81799,2619.2,2618.7,3.41688355]
[1729215249967,3.81799,2619.2,2618.5,5.82927736]
[1729215250869,3.81814,2619.1,2618.5,5.82927736]
[1729215251026,3.81825,2619.0,2618.5,2.01038736]
[1729215251368,3.81814,2619.1,2618.5,2.01038736]
[1729215251565,3.81833,2619.0,2618.5,2.01038736]
[1729215252249,3.81814,2619.1,2618.5,2.01038736]
[1729215252574,3.81826,2619.0,2618.6,1.02006903]
[1729215253325,7.63633,2619.1,2618.6,1.02006903]
[1729215253521,3.81827,2619.0,2618.6,1.02006903]
[1729215255162,3.81814,2619.1,2618.6,1.02006903]
[1729215255384,3.8184,2618.9,2618.6,1.02006903]
[1729215257872,3.8184,2618.9,2618.5,0.8226]
[1729215259890,1.3589477,2619.8,2618.8,0.8226]
[1729215260185,3.81775,2619.4,2619.0,0.8226]
[1729215260488,3.81775,2619.4,2619.0,5.65795391]
[1729215261076,3.81775,2619.4,2619.0,5.73430977]
[1729215261260,3.81752,2619.5,2619.0,5.73430977]
[1729215261450,7.63492,2619.6,2619.0,9.55255977]
[1729215261649,3.81754,2619.5,2619.0,5.65795391]
[1729215261852,3.81754,2619.5,2619.0,5.7343097]
[1729215262992,3.81746,2619.6,2619.0,5.7343097]
[1729215263151,3.81761,2619.5,2619.0,5.7343097]
[1729215263876,3.81711,2619.8,2619.4,0.7845]
[1729215264085,3.81689,2620.0,2619.4,0.7845]
[1729215264281,3.81657,2620.2,2619.6,4.37126291]
[1729215264452,4.41389629,2620.5,2619.7,0.7845]
[1729215264453,0.8184,2620.4,2619.7,0.7845]
[1729215264657,3.81686,2620.0,2619.7,0.7845]
[1729215264969,3.81659,2620.2,2619.7,0.7845]
[1729215265492,3.81659,2620.2,2619.7,0.86083806]
[1729215265665,3.81667,2620.1,2619.7,0.7845]
[1729215268484,3.8168,2620.0,2619.7,0.7845]
[1729215268659,7.63373,2620.0,2619.7,0.7845]
[1729215268864,8.397103,2620.0,2619.7,0.7845]
[1729215269077,3.81694,2619.9,2619.7,0.7845]
[1729215271286,3.8168,2620.0,2619.7,0.7845]
[1729215271995,3.81696,2619.9,2619.7,0.7845]
[1729215272794,0.7723,2620.1,2619.2,0.7763]
[1729215272971,3.81738,2619.6,2619.2,0.7763]
[1729215273386,3.81766,2619.4,2619.2,0.7763]
[1729215273558,3.81766,2619.4,2618.9,8.00748784]
[1729215273901,3.81754,2619.5,2619.1,3.41279784]
[1729215274658,3.81694,2619.9,2619.3,3.41279784]
[1729215274859,3.81674,2620.1,2619.5,4.18539784]
[1729215275074,3.81702,2619.9,2619.5,4.18539784]
[1729215275407,7.63353,2620.1,2619.5,8.00290784]
[1729215275697,3.81674,2620.1,2619.5,8.00290784]
[1729215275901,3.81683,2620.0,2619.5,8.00290784]
[1729215276389,3.81696,2619.9,2619.5,4.18539784]
[1729215276698,3.81696,2619.9,2619.5,0.7726]
[1729215276699,3.8172,2619.8,2619.5,0.7726]
[1729215276867,3.81708,2619.8,2619.5,0.7726]
[1729215277069,3.81696,2619.9,2619.5,0.7726]
[1729215278078,3.81673,2620.1,2619.6,3.41279784]
[1729215278399,3.81687,2620.0,2619.5,4.59009]
[1729215278590,3.81687,2620.0,2619.5,8.00288784]
[1729215279522,3.81687,2620.0,2619.5,4.59009]
[1729215279696,4.58023,2620.0,2619.5,4.59009]
[1729215279903,0.76336,2620.0,2619.5,4.59003]
[1729215280190,3.81681,2620.0,2619.5,4.59003]
[1729215280576,3.81673,2620.1,2619.6,7.23015784]
[1729215280999,7.63346,2620.1,2619.6,7.23015784]
[1729215281226,7.63346,2620.1,2619.6,3.81736]
[1729215281527,7.63347,2620.1,2619.6,3.81736]
[1729215282301,3.81694,2619.9,2619.5,0.7726]
[1729215282613,3.81673,2620.1,2619.5,0.7726]
[1729215282828,3.81688,2620.0,2619.5,0.7726]
[1729215283180,3.81688,2620.0,2619.5,4.59009]
[1729215283382,3.81688,2620.0,2619.5,0.7726]
[1729215283834,7.63351,2620.1,2619.5,0.7726]
[1729215284186,3.81688,2620.0,2619.5,4.59011]
[1729215286131,3.81679,2620.0,2619.5,0.7726]
[1729215286698,3.81679,2620.0,2619.5,4.59011]
[1729215288585,3.81673,2620.1,2619.5,0.7726]
[1729215288586,3.81695,2619.9,2619.5,0.7726]
[1729215288811,3.81673,2620.1,2619.5,4.59008]
[1729215289096,3.81695,2619.9,2619.5,0.7726]
[1729215289301,3.81695,2619.9,2619.5,4.59012]
[1729215290469,3.81708,2619.8,2619.5,0.7726]
[1729215290723,3.81695,2619.9,2619.5,0.7726]
[1729215291315,4.3156854,2620.1,2619.5,4.18539784]
[1729215291316,3.81679,2620.0,2619.5,4.18539784]
[1729215291495,4.989144,2620.3,2619.6,3.81737]
[1729215291714,3.81673,2620.1,2619.6,3.81737]
[1729215291911,3.81673,2620.1,2619.5,4.99333011]
[1729215292125,3.81673,2620.1,2619.5,5.39797227]
[1729215292404,3.81679,2620.0,2619.5,5.39797227]
[1729215292604,3.81673,2620.1,2619.5,5.39797227]
[1729215293014,3.81673,2620.1,2619.6,3.81737]
[1729215294417,3.81673,2620.1,2619.6,4.651424]
[1729215295950,3.81673,2620.1,2619.6,8.54505362]
[1729215296248,3.81673,2620.1,2619.7,0.7872]
[1729215296414,0.7519,2620.5,2619.7,0.86353913]
[1729215296610,3.81645,2620.3,2619.7,4.60434]
[1729215296815,3.81645,2620.3,2619.7,5.5299084]
[1729215297248,3.81645,2620.3,2619.9,0.7872]
[1729215297653,1.15033575,2620.7,2619.9,0.7872]
[1729215297856,3.81666,2620.1,2619.9,0.7872]
[1729215298013,3.8165,2620.3,2619.9,0.7872]
[1729215299517,3.81647,2620.3,2619.9,0.7872]
[1729215299953,7.63291,2620.3,2619.9,0.7872]
[1729215300263,3.81644,2620.3,2619.9,0.7872]
[1729215301250,7.63288,2620.3,2619.9,0.7872]
[1729215301562,3.81617,2620.5,2620.0,3.41279784]
[1729215301767,3.81584,2620.7,2620.0,7.22957784]
[1729215301964,7.63172,2620.7,2620.2,0.7891]
[1729215302259,3.81592,2620.6,2620.2,0.7891]
[1729215302506,3.81584,2620.7,2620.2,0.7891]
[1729215302696,7.63172,2620.7,2620.2,0.7891]
[1729215303208,3.81584,2620.7,2620.2,0.7891]
[1729215303395,4.41326471,2620.9,2620.4,3.41279784]
[1729215303568,3.81537,2621.0,2620.5,4.60516]
[1729215303763,8.39711,2621.1,2620.5,4.60516]
[1729215303956,4.58178,2621.1,2620.5,4.60516]
[1729215304163,3.81542,2621.0,2620.5,4.60516]
[1729215304566,3.81551,2620.9,2620.5,0.7891]
[1729215305380,3.81587,2620.7,2620.3,0.8078]
[1729215305785,3.81556,2620.9,2620.3,0.8078]
[1729215306113,3.81556,2620.9,2620.4,3.81618]
[1729215306910,8.91503435,2621.1,2620.5,7.22877784]
[1729215307123,0.59756354,2621.2,2620.9,0.7809]
[1729215307264,3.81484,2621.4,2621.0,3.41279784]
[1729215307559,3.81501,2621.3,2620.9,0.7809]
[1729215308428,7.62971,2621.4,2620.9,0.7809]
[1729215308602,3.8149,2621.3,2620.9,0.7809]
[1729215308809,7.62989,2621.3,2620.9,0.7809]
[1729215308978,3.81505,2621.2,2620.9,0.7809]
[1729215309396,3.81526,2621.1,2620.9,0.7809]
[1729215309537,3.81533,2621.0,2620.6,0.8299]
[1729215309803,3.81526,2621.1,2620.6,0.8299]
[1729215310100,3.81538,2621.0,2620.6,0.8299]
[1729215310317,3.81526,2621.1,2620.6,0.8299]
[1729215310531,3.81463,2621.5,2621.0,3.81531]
[1729215310722,3.81463,2621.5,2621.1,4.24269784]
[1729215310867,3.8145,2621.6,2621.1,8.05785784]
[1729215311211,3.81464,2621.5,2621.1,0.8299]
[1729215311369,8.22632326,2621.7,2621.1,4.64509]
[1729215311571,3.8145,2621.6,2621.1,0.8299]
[1729215312395,0.7865,2621.5,2620.6,5.12177226]
[1729215312597,3.81531,2621.1,2620.6,1.30599226]
[1729215312804,3.81518,2621.2,2620.6,5.12189226]
[1729215313002,3.81482,2621.4,2620.7,4.24269784]
[1729215313194,3.81482,2621.4,2620.8,3.81562]